fUST/lending_fUST_20251001
["ID","MTS","AMOUNT","RATE_DAILY","PERIOD"]
[388658599,1759307441080,-481.8786227,0.00019587,2]
[388658600,1759307441089,-500.0,0.00019587,2]
[388658601,1759307441098,-352.53287625,0.00019587,2]
[388658602,1759307441107,-500.0,0.00019587,2]
[388658603,1759307441117,-481.87228907,0.00019587,2]
[388658604,1759307441125,-500.0,0.00019587,2]
[388658605,1759307441136,-1010.17160294,0.00019587,2]
[388658606,1759307441145,-500.0,0.00019587,2]
[388658607,1759307441155,-500.0,0.00019587,2]
[388658608,1759307441164,-500.0,0.00019587,2]
[388658609,1759307441173,-500.0,0.00019587,2]
[388658610,1759307441182,-500.0,0.00019587,2]
[388658611,1759307441191,-500.0,0.00019587,2]
[388658612,1759307441200,-500.0,0.00019587,2]
[388658613,1759307441210,-500.0,0.00019587,2]
[388658614,1759307441219,-500.0,0.00019587,2]
[388658615,1759307441227,-500.0,0.00019587,2]
[388658616,1759307441236,-500.0,0.00019587,2]
[388658617,1759307441245,-500.0,0.00019587,2]
[388658618,1759307441254,-500.0,0.00019587,2]
[388658619,1759307441263,-500.0,0.00019587,2]
[388658620,1759307441272,-500.0,0.00019587,2]
[388658621,1759307441282,-360.81994033,0.00019587,2]
[388658622,1759307441291,-500.0,0.00019587,2]
[388658623,1759307441301,-500.0,0.00019587,2]
[388658624,1759307441310,-485.24736511,0.00019587,2]
[388658625,1759307441319,-500.0,0.00019587,2]
[388658626,1759307441328,-500.0,0.00019587,2]
[388658627,1759307441337,-500.0,0.00019587,2]
[388658628,1759307441347,-500.0,0.00019587,2]
[388658629,1759307441356,-482.47440965,0.00019587,2]
[388658630,1759307441365,-500.0,0.00019587,2]
[388658631,1759307441374,-500.0,0.00019587,2]
[388658632,1759307441385,-500.0,0.00019587,2]
[388658633,1759307441394,-653.9,0.00019587,2]
[388658634,1759307441403,-1309.71,0.00019587,2]
[388658635,1759307441412,-500.0,0.00019587,2]
[388658636,1759307441421,-500.0,0.00019587,2]
[388658637,1759307441431,-482.30528913,0.00019587,2]
[388658638,1759307441440,-500.0,0.00019587,2]
[388658639,1759307441449,-603.95809957,0.00019587,2]
[388658640,1759307441459,-445.7533544,0.00019587,2]
[388658641,1759307441468,-484.75411977,0.00019587,2]
[388658642,1759307441478,-500.0,0.00019587,2]
[388658643,1759307441488,-500.0,0.00019587,2]
[388658644,1759307441497,-482.76775611,0.00019587,2]
[388658645,1759307441506,-500.0,0.00019587,2]
[388658646,1759307441515,-481.83228989,0.00019587,2]
[388658647,1759307441525,-482.84947016,0.00019587,2]
[388658648,1759307441534,-482.20273478,0.00019587,2]
[388658649,1759307441543,-500.0,0.00019587,2]
[388658650,1759307441552,-500.0,0.00019587,2]
[388658651,1759307441561,-500.0,0.00019587,2]
[388658652,1759307441571,-249.3714503,0.00019587,2]
[388658653,1759307441612,-233.56135688,0.00019587,2]
[388658654,1759307441622,-500.0,0.00019587,2]
[388658655,1759307441639,-500.0,0.00019587,2]
[388658656,1759307441648,-561.04146903,0.00019587,2]
[388658657,1759307441657,-500.0,0.00019587,2]
[388658658,1759307441666,-498.86817122,0.00019587,2]
[388658671,1759307442937,-500.0,0.00019472,2]
[388658672,1759307442947,-500.0,0.00019472,2]
[388658673,1759307442957,-344.04271155,0.00019475,2]
[388658674,1759307444708,1000.0,0.00034655,120]
[388658712,1759307445987,-500.0,0.00019472,2]
[388658713,1759307445997,-100.0,0.00019472,2]
[388658714,1759307448681,5000.0,0.00019178,2]
[388658715,1759307452638,1000.0,0.00034655,120]
[388658716,1759307456612,5000.0,0.00019178,2]
[388658717,1759307465273,234.52949749,0.00019178,2]
[388658718,1759307468387,1000.0,0.00034655,120]
[388658719,1759307475222,1000.0,0.00034655,120]
[388658720,1759307488644,1000.0,0.00034655,120]
[388658722,1759307649241,253.25,0.00028767,120]
[388658723,1759307651894,280.3726878,0.00018405,2]
[388658724,1759307691463,7785.0,0.00025,30]
[388658725,1759307697877,32150.21904419,0.0002,28]
[388658726,1759307703139,12650.86639694,0.00034668,60]
[388658731,1759307849582,162.0,0.000287,120]
[388658732,1759307873385,507.672,0.00019178,2]
[388658733,1759307875137,1150.0,0.00034672,60]
[388658734,1759307875564,163.0,0.000191,2]
[388658735,1759307899551,1200.0,0.00034672,60]
[388658736,1759307925974,1179.15,0.00034672,60]
[388658740,1759308007125,3995.84,0.00025,30]
[388658741,1759308114705,500.0,0.00027397,120]
[388658751,1759308433933,500.0,0.00027397,120]
[388658752,1759308484945,852.261003,0.00034675,60]
[388658755,1759308604048,666.0,0.00018364,2]
[388658785,1759308632082,-429.53980622,0.00019268,2]
[388658787,1759308632092,-3024.63690495,0.00019282,2]
[388658789,1759308632102,-500.0,0.000193,2]
[388658791,1759308632111,-300.0,0.00019361,2]
[388658793,1759308632120,-300.0,0.00019361,2]
[388658795,1759308632130,-300.0,0.00019361,2]
[388658797,1759308632140,-300.0,0.00019361,2]
[388658799,1759308632149,-300.0,0.00019361,2]
[388658801,1759308632159,-1200.0,0.00019361,2]
[388658804,1759308632168,-1097.38,0.00019362,3]
[388658805,1759308632180,-548.69,0.00019362,3]
[388658807,1759308632189,-274.34,0.00019362,3]
[388658809,1759308632199,-823.05,0.00019362,3]
[388658812,1759308632211,-1200.0,0.00019367,2]
[388658814,1759308632224,-669.38,0.00019367,2]
[388658816,1759308632234,-887.03,0.00019367,2]
[388658818,1759308632244,-482.3402412,0.00019367,2]
[388658820,1759308632253,-853.06,0.00019367,2]
[388658822,1759308632263,-1585.44,0.00019367,2]
[388658824,1759308632273,-500.0,0.00019367,2]
[388658826,1759308632283,-484.80415955,0.00019367,2]
[388658828,1759308632298,-500.0,0.00019367,2]
[388658830,1759308632308,-500.0,0.00019367,2]
[388658831,1759308632318,-6118.14,0.00019367,2]
[388658834,1759308632328,-5002.88,0.00019367,2]
[388658835,1759308632338,-500.0,0.00019367,2]
[388658837,1759308632348,-484.73301845,0.00019367,2]
[388658839,1759308632357,-4812.95793369,0.00019367,2]
[388658841,1759308632370,-45187.04206631,0.00019367,2]
[388658843,1759308632380,-348.79770939,0.00019368,2]
[388658845,1759308632389,-500.0,0.00019368,2]
[388658847,1759308632399,-500.0,0.00019368,2]
[388658849,1759308632408,-500.0,0.00019368,2]
[388658851,1759308632418,-500.0,0.00019368,2]
[388658853,1759308632428,-500.0,0.00019368,2]
[388658855,1759308632438,-500.0,0.00019368,2]
[388658857,1759308632448,-500.0,0.00019368,2]
[388658859,1759308632457,-500.0,0.00019368,2]
[388658861,1759308632466,-500.0,0.00019368,2]
[388658863,1759308632475,-500.0,0.00019368,2]
[388658865,1759308632486,-500.0,0.00019368,2]
[388658868,1759308632496,-500.0,0.00019368,2]
[388658869,1759308632506,-500.0,0.00019368,2]
[388658872,1759308632515,-500.0,0.00019368,2]
[388658874,1759308632524,-500.0,0.00019368,2]
[388658876,1759308632534,-500.0,0.00019368,2]
[388658877,1759308632550,-500.0,0.00019368,2]
[388658880,1759308632564,-500.0,0.00019368,2]
[388658882,1759308632574,-406.26239166,0.00019368,2]
[388658883,1759308632584,-500.0,0.00019368,2]
[388658884,1759308632594,-600.47380161,0.00019368,2]
[388658886,1759308632603,-500.0,0.00019368,2]
[388658887,1759308632614,-500.0,0.00019368,2]
[388658888,1759308632623,-500.0,0.00019368,2]
[388658889,1759308632633,-294.36423407,0.00019368,2]
[388658891,1759308632644,-500.0,0.00019368,2]
[388658892,1759308632654,-500.0,0.00019368,2]
[388658895,1759308632665,-466.58009866,0.00019368,2]
[388658896,1759308632675,-500.0,0.00019368,2]
[388658898,1759308632685,-500.0,0.00019368,2]
[388658900,1759308632695,-500.0,0.00019368,2]
[388658902,1759308632704,-458.87442642,0.00019368,2]
[388658903,1759308632714,-500.0,0.00019368,2]
[388658904,1759308632723,-257.21494369,0.00019368,2]
[388658905,1759308632745,-242.78505631,0.00019368,2]
[388658906,1759308632755,-500.0,0.00019368,2]
[388658907,1759308632764,-500.0,0.00019368,2]
[388658908,1759308632774,-500.0,0.00019368,2]
[388658909,1759308632784,-347.71310575,0.00019368,2]
[388659210,1759308637952,-207.2009166,0.00019366,2]
[388659211,1759308637962,-282.78071021,0.00019366,2]
[388659212,1759308637972,-615.30250656,0.00019367,2]
[388659213,1759308637983,-500.0,0.00019367,2]
[388659214,1759308637993,-299.06650824,0.00019369,2]
[388659215,1759308638002,-500.0,0.00019369,2]
[388659216,1759308638012,-500.0,0.00019369,2]
[388659217,1759308638022,-500.0,0.00019369,2]
[388659218,1759308638032,-389.26719375,0.00019369,2]
[388659219,1759308638045,-92.40663684,0.00019369,2]
[388659220,1759308638058,-500.0,0.00019369,2]
[388659222,1759308638068,-500.0,0.00019369,2]
[388659224,1759308638078,-500.0,0.00019369,2]
[388659225,1759308638088,-500.0,0.00019369,2]
[388659226,1759308638098,-1248.11,0.00019369,2]
[388659227,1759308638108,-500.0,0.00019369,2]
[388659228,1759308638118,-482.36136359,0.00019369,2]
[388659229,1759308638128,-485.05101993,0.00019369,2]
[388659230,1759308638137,-500.0,0.00019369,2]
[388659231,1759308638147,-500.0,0.00019369,2]
[388659232,1759308638157,-500.0,0.00019369,2]
[388659233,1759308638166,-500.0,0.00019369,2]
[388659234,1759308638178,-613.66371902,0.00019369,2]
[388659235,1759308638190,-500.0,0.00019369,2]
[388659236,1759308638200,-500.0,0.00019369,2]
[388659237,1759308638211,-485.9579845,0.00019369,2]
[388659238,1759308638223,-500.0,0.00019369,2]
[388659239,1759308638233,-500.0,0.00019369,2]
[388659240,1759308638243,-500.0,0.00019369,2]
[388659241,1759308638253,-2431.72,0.00019369,2]
[388659242,1759308638262,-484.55797509,0.00019369,2]
[388659243,1759308638274,-574.57337894,0.00019369,2]
[388659244,1759308638284,-500.0,0.00019369,2]
[388659245,1759308638295,-865.9,0.00019369,2]
[388659246,1759308638310,-500.0,0.00019369,2]
[388659247,1759308638320,-500.0,0.00019369,2]
[388659248,1759308638330,-483.22543975,0.00019369,2]
[388659249,1759308638340,-583.24,0.00019369,2]
[388659250,1759308638350,-500.0,0.00019369,2]
[388659251,1759308638361,-500.0,0.00019369,2]
[388659252,1759308638371,-545.82516795,0.00019369,2]
[388659253,1759308638381,-828.08,0.00019369,2]
[388659254,1759308638390,-500.0,0.00019369,2]
[388659255,1759308638400,-500.0,0.00019369,2]
[388659256,1759308638412,-500.0,0.00019369,2]
[388659257,1759308638422,-1257.47,0.00019369,2]
[388659258,1759308638431,-500.0,0.00019369,2]
[388659259,1759308638442,-397.63266652,0.00019369,2]
[388659260,1759308638453,-291.21828647,0.00019369,2]
[388659261,1759308638463,-484.42404092,0.00019369,2]
[388659262,1759308638689,-500.0,0.00019369,2]
[388659263,1759308638699,-896.85,0.00019369,2]
[388659264,1759308638709,-505.69311346,0.00019369,2]
[388659265,1759308638719,-2533.02,0.00019369,2]
[388659266,1759308638729,-500.0,0.00019369,2]
[388659267,1759308638738,-485.05214232,0.00019369,2]
[388659268,1759308638749,-486.94394372,0.00019369,2]
[388659269,1759308638758,-485.06937107,0.00019369,2]
[388659270,1759308638768,-500.0,0.00019369,2]
[388659271,1759308638779,-524.3,0.00019369,2]
[388659272,1759308638789,-500.0,0.00019369,2]
[388659273,1759308638803,-1624.04,0.00019369,2]
[388659274,1759308638815,-694.42,0.00019369,2]
[388659275,1759308638826,-500.0,0.00019369,2]
[388659276,1759308638836,-500.0,0.00019369,2]
[388659277,1759308638846,-500.0,0.00019369,2]
[388659278,1759308638857,-500.0,0.00019369,2]
[388659279,1759308638868,-482.3791643,0.00019369,2]
[388659280,1759308638879,-500.0,0.00019369,2]
[388659281,1759308638890,-500.0,0.00019369,2]
[388659282,1759308638901,-2766.91,0.00019369,2]
[388659283,1759308638912,-1987.17,0.00019369,2]
[388659284,1759308638923,-789.98,0.00019369,2]
[388659285,1759308638934,-500.0,0.00019369,2]
[388659286,1759308638944,-489.30366219,0.00019369,2]
[388659287,1759308638955,-2459.21,0.00019369,2]
[388659288,1759308638965,-500.0,0.00019369,2]
[388659289,1759308638974,-2411.7,0.00019369,2]
[388659290,1759308638984,-500.0,0.00019369,2]
[388659291,1759308638994,-500.0,0.00019369,2]
[388659292,1759308639004,-481.29591897,0.00019369,2]
[388659293,1759308639013,-500.0,0.00019369,2]
[388659294,1759308639023,-920.03,0.00019369,2]
[388659295,1759308639034,-2093.29,0.00019369,2]
[388659296,1759308639044,-500.0,0.00019369,2]
[388659297,1759308639059,-500.0,0.00019369,2]
[388659298,1759308639069,-500.0,0.00019369,2]
[388659299,1759308639080,-829.24,0.00019369,2]
[388659300,1759308639090,-2355.18,0.00019369,2]
[388659301,1759308639101,-438.91248419,0.00019369,2]
[388659302,1759308639206,-61.08751581,0.00019369,2]
[388659303,1759308639218,-358.6913035,0.00019369,2]
[388659304,1759308639231,-294.7186965,0.00019369,2]
[388659305,1759308639240,-982.92,0.00019369,2]
[388659306,1759308639250,-500.0,0.00019369,2]
[388659307,1759308639260,-482.0481108,0.00019369,2]
[388659308,1759308639271,-2101.53,0.00019369,2]
[388659309,1759308639282,-500.0,0.00019369,2]
[388659310,1759308639293,-500.0,0.00019369,2]
[388659311,1759308639308,-500.0,0.00019369,2]
[388659312,1759308639318,-500.0,0.00019369,2]
[388659313,1759308639328,-500.0,0.00019369,2]
[388659314,1759308639337,-500.0,0.00019369,2]
[388659315,1759308639347,-500.0,0.00019369,2]
[388659317,1759308639356,-4745.68,0.00019369,2]
[388659319,1759308639366,-500.0,0.00019369,2]
[388659321,1759308639375,-500.0,0.0001937,2]
[388659324,1759308639385,-500.0,0.0001937,2]
[388659326,1759308639395,-500.0,0.0001937,2]
[388659329,1759308639405,-485.64929596,0.00019371,2]
[388659331,1759308639415,-588.02711465,0.00019371,2]
[388659332,1759308639424,-328.60238773,0.00019371,2]
[388659334,1759308639437,-18.11668199,0.00019371,2]
[388659335,1759308639448,-481.67357881,0.00019371,2]
[388659337,1759308639458,-500.0,0.00019371,2]
[388659339,1759308639469,-500.0,0.00019371,2]
[388659341,1759308639479,-500.0,0.00019371,2]
[388659344,1759308639488,-500.0,0.00019371,2]
[388659346,1759308639498,-500.0,0.00019371,2]
[388659348,1759308639507,-607.49983247,0.00019372,2]
[388659350,1759308639517,-500.0,0.00019372,2]
[388659352,1759308639526,-500.0,0.00019372,2]
[388659354,1759308639536,-483.29084183,0.00019372,2]
[388659357,1759308639546,-231.26830628,0.00019372,2]
[388659359,1759308639563,-268.73169372,0.00019372,2]
[388659361,1759308639572,-500.0,0.00019372,2]
[388659362,1759308639582,-2081.43,0.00019372,2]
[388659364,1759308639592,-500.0,0.00019372,2]
[388659366,1759308639602,-1215.12,0.00019372,2]
[388659367,1759308639611,-486.65790744,0.00019372,2]
[388659368,1759308639621,-500.0,0.00019372,2]
[388659369,1759308639630,-500.0,0.00019372,2]
[388659370,1759308639639,-500.0,0.00019372,2]
[388659371,1759308639648,-500.0,0.00019372,2]
[388659372,1759308639658,-589.51,0.00019372,2]
[388659373,1759308639667,-439.23017716,0.00019372,2]
[388659374,1759308639678,-60.76982284,0.00019372,2]
[388659375,1759308639688,-500.0,0.00019372,2]
[388659376,1759308639698,-500.0,0.00019372,2]
[388659377,1759308639707,-1748.34,0.00019372,2]
[388659378,1759308639717,-461.21854145,0.00019372,2]
[388659379,1759308639729,-38.91392296,0.00019372,2]
[388659380,1759308639739,-481.30143036,0.00019372,2]
[388659381,1759308639748,-1864.46,0.00019372,2]
[388659382,1759308639758,-500.0,0.00019372,2]
[388659383,1759308639767,-500.0,0.00019372,2]
[388659384,1759308639777,-500.0,0.00019372,2]
[388659385,1759308639787,-115.32464668,0.00019372,2]
[388659386,1759308639803,-378.04805563,0.00019372,2]
[388659387,1759308639821,-500.0,0.00019372,2]
[388659388,1759308639832,-427.37766854,0.00019372,2]
[388659389,1759308639925,-72.62233146,0.00019372,2]
[388659390,1759308639938,-318.35667974,0.00019372,2]
[388659391,1759308639952,-181.64332026,0.00019372,2]
[388659392,1759308639963,-929.92,0.00019372,2]
[388659393,1759308639973,-892.97,0.00019372,2]
[388659394,1759308639984,-500.0,0.00019372,2]
[388659395,1759308639995,-572.8258145,0.00019372,2]
[388659396,1759308640006,-2102.72,0.00019372,2]
[388659397,1759308640016,-714.97,0.00019372,2]
[388659398,1759308640026,-500.0,0.00019372,2]
[388659399,1759308640035,-2907.75,0.00019372,2]
[388659400,1759308640045,-500.0,0.00019372,2]
[388659402,1759308640061,-1238.06,0.00019372,2]
[388659404,1759308640071,-1112.29,0.00019372,2]
[388659406,1759308640080,-4303.01,0.00019372,2]
[388659408,1759308640090,-933.24,0.00019372,2]
[388659410,1759308640101,-480.0,0.00019372,2]
[388659412,1759308640111,-500.0,0.00019372,2]
[388659414,1759308640121,-631.89970947,0.00019372,2]
[388659415,1759308640131,-500.0,0.00019372,2]
[388659417,1759308640142,-567.9,0.00019372,2]
[388659418,1759308640151,-500.67,0.00019372,2]
[388659419,1759308640161,-481.71731183,0.00019372,2]
[388659420,1759308640171,-516.9,0.00019372,2]
[388659421,1759308640185,-500.0,0.00019372,2]
[388659422,1759308640195,-500.0,0.00019372,2]
[388659423,1759308640205,-175.9856758,0.00019372,2]
[388659424,1759308640214,-500.0,0.00019372,2]
[388659425,1759308640224,-500.0,0.00019372,2]
[388659426,1759308640234,-514.35,0.00019372,2]
[388659427,1759308640244,-971.19,0.00019372,2]
[388659428,1759308640253,-500.0,0.00019372,2]
[388659429,1759308640265,-1090.76,0.00019372,2]
[388659430,1759308640277,-500.0,0.00019372,2]
[388659431,1759308640287,-889.64,0.00019372,2]
[388659432,1759308640296,-1932.57,0.00019372,2]
[388659433,1759308640313,-500.0,0.00019372,2]
[388659434,1759308640324,-500.0,0.00019372,2]
[388659435,1759308640334,-500.0,0.00019372,2]
[388659436,1759308640344,-1745.37,0.00019372,2]
[388659437,1759308640354,-500.0,0.00019372,2]
[388659438,1759308640364,-1554.93,0.00019372,2]
[388659439,1759308640374,-484.80579583,0.00019372,2]
[388659440,1759308640385,-483.15182184,0.00019372,2]
[388659441,1759308640395,-462.52287224,0.00019372,2]
[388659442,1759308640404,-1491.18,0.00019372,2]
[388659443,1759308640414,-500.0,0.00019372,2]
[388659444,1759308640424,-500.0,0.00019372,2]
[388659445,1759308640434,-489.83829118,0.00019372,2]
[388659446,1759308640444,-1675.67,0.00019372,2]
[388659447,1759308640454,-788.18,0.00019372,2]
[388659448,1759308640465,-3247.96,0.00019372,2]
[388659449,1759308640474,-1233.77,0.00019372,2]
[388659450,1759308640485,-500.0,0.00019372,2]
[388659451,1759308640496,-500.0,0.00019372,2]
[388659452,1759308640506,-1122.47,0.00019372,2]
[388659453,1759308640516,-500.0,0.00019372,2]
[388659454,1759308640525,-1856.33,0.00019372,2]
[388659455,1759308640536,-2418.56,0.00019372,2]
[388659456,1759308640545,-500.0,0.00019372,2]
[388659457,1759308640561,-500.0,0.00019372,2]
[388659458,1759308640570,-655.19,0.00019372,2]
[388659459,1759308640580,-480.75277234,0.00019372,2]
[388659460,1759308640589,-2431.84,0.00019372,2]
[388659461,1759308640599,-484.55857735,0.00019372,2]
[388659462,1759308640609,-2114.46,0.00019372,2]
[388659463,1759308640618,-500.0,0.00019372,2]
[388659464,1759308640628,-500.0,0.00019372,2]
[388659465,1759308640637,-500.0,0.00019372,2]
[388659466,1759308640647,-500.0,0.00019372,2]
[388659467,1759308640656,-500.0,0.00019372,2]
[388659468,1759308640666,-500.0,0.00019372,2]
[388659469,1759308640676,-500.0,0.00019372,2]
[388659470,1759308640685,-500.0,0.00019372,2]
[388659471,1759308640695,-500.0,0.00019372,2]
[388659472,1759308640704,-500.0,0.00019372,2]
[388659473,1759308640714,-500.0,0.00019372,2]
[388659474,1759308640725,-500.0,0.00019372,2]
[388659475,1759308640735,-500.0,0.00019372,2]
[388659476,1759308640744,-500.0,0.00019372,2]
[388659477,1759308640754,-500.0,0.00019372,2]
[388659478,1759308640764,-500.0,0.00019372,2]
[388659479,1759308640773,-500.0,0.00019372,2]
[388659480,1759308640783,-500.0,0.00019372,2]
[388659481,1759308640792,-500.0,0.00019372,2]
[388659482,1759308640809,-500.0,0.00019372,2]
[388659483,1759308640818,-200.0,0.00019372,2]
[388659484,1759308640828,-200.0,0.00019372,2]
[388659485,1759308640838,-200.0,0.00019372,2]
[388659486,1759308640847,-200.0,0.00019372,2]
[388659487,1759308640856,-200.0,0.00019372,2]
[388659488,1759308640865,-209.01831281,0.00019372,2]
[388659489,1759308640875,-500.0,0.00019372,2]
[388659490,1759308640884,-200.0,0.00019372,2]
[388659491,1759308640894,-151.0,0.00019372,2]
[388659492,1759308640903,-250.0,0.00019372,2]
[388659493,1759308640913,-500.0,0.00019372,2]
[388659494,1759308640923,-261.81890834,0.00019372,2]
[388659495,1759308640933,-151.0,0.00019372,2]
[388659496,1759308640943,-258.61360556,0.00019372,2]
[388659497,1759308640953,-250.0,0.00019372,2]
[388659498,1759308640964,-500.0,0.00019372,2]
[388659499,1759308640975,-151.0,0.00019372,2]
[388659500,1759308640985,-500.0,0.00019372,2]
[388659501,1759308640995,-250.0,0.00019372,2]
[388659502,1759308641005,-151.0,0.00019372,2]
[388659503,1759308641014,-500.0,0.00019372,2]
[388659504,1759308641024,-151.0,0.00019372,2]
[388659505,1759308641034,-500.0,0.00019372,2]
[388659506,1759308641043,-250.0,0.00019372,2]
[388659507,1759308641057,-151.0,0.00019372,2]
[388659508,1759308641066,-500.0,0.00019372,2]
[388659509,1759308641075,-250.0,0.00019372,2]
[388659510,1759308641084,-151.0,0.00019372,2]
[388659511,1759308641094,-500.0,0.00019372,2]
[388659512,1759308641104,-250.0,0.00019372,2]
[388659513,1759308641113,-151.0,0.00019372,2]
[388659514,1759308641122,-250.0,0.00019372,2]
[388659515,1759308641132,-151.0,0.00019372,2]
[388659516,1759308641142,-500.0,0.00019372,2]
[388659517,1759308641152,-250.0,0.00019372,2]
[388659518,1759308641162,-151.0,0.00019372,2]
[388659519,1759308641172,-500.0,0.00019372,2]
[388659520,1759308641184,-250.0,0.00019372,2]
[388659521,1759308641194,-151.0,0.00019372,2]
[388659522,1759308641208,-500.0,0.00019372,2]
[388659523,1759308641218,-250.0,0.00019372,2]
[388659524,1759308641227,-151.0,0.00019372,2]
[388659525,1759308641237,-500.0,0.00019372,2]
[388659526,1759308641249,-250.0,0.00019372,2]
[388659527,1759308641258,-151.0,0.00019372,2]
[388659528,1759308641268,-500.0,0.00019372,2]
[388659529,1759308641278,-250.0,0.00019372,2]
[388659530,1759308641287,-151.0,0.00019372,2]
[388659531,1759308641301,-500.0,0.00019372,2]
[388659532,1759308641315,-250.0,0.00019372,2]
[388659533,1759308641325,-250.0,0.00019372,2]
[388659534,1759308641334,-250.0,0.00019372,2]
[388659535,1759308641345,-151.0,0.00019372,2]
[388659536,1759308641355,-482.28156793,0.00019382,2]
[388659537,1759308641365,-500.0,0.00019382,2]
[388659538,1759308641375,-482.93289006,0.00019382,2]
[388659539,1759308641385,-500.0,0.00019382,2]
[388659540,1759308641395,-485.14440651,0.00019382,2]
[388659541,1759308641406,-500.0,0.00019382,2]
[388659542,1759308641417,-565.59,0.00019382,2]
[388659543,1759308641427,-2939.49,0.00019382,2]
[388659544,1759308641438,-491.19603644,0.00019382,2]
[388659545,1759308641448,-2188.18,0.00019382,2]
[388659546,1759308641459,-500.0,0.00019382,2]
[388659547,1759308641468,-2197.04,0.00019382,2]
[388659548,1759308641478,-1053.94,0.00019382,2]
[388659549,1759308641488,-5025.86,0.00019382,2]
[388659550,1759308641497,-1803.25,0.00019382,2]
[388659551,1759308641506,-6761.68,0.00019382,2]
[388659552,1759308641516,-2342.09,0.00019382,2]
[388659553,1759308641525,-1917.0,0.00019382,2]
[388659554,1759308641534,-1306.44,0.00019382,2]
[388659555,1759308641543,-3442.86,0.00019382,2]
[388659556,1759308641560,-5423.71,0.00019382,2]
[388659557,1759308641570,-482.44381804,0.00019382,2]
[388659558,1759308641579,-500.0,0.00019383,2]
[388659559,1759308641588,-500.0,0.00019383,2]
[388659560,1759308641597,-482.83966128,0.00019383,2]
[388659561,1759308641606,-259227.25525915,0.00019384,2]
[388659562,1759308641616,-151.0,0.000194,2]
[388659563,1759308641626,-151.0,0.000194,2]
[388659564,1759308641635,-3024.63690495,0.00019416,2]
[388659565,1759308641645,-3293.798254,0.00019438,2]
[388659566,1759308641654,-334.0,0.00019447,2]
[388659567,1759308641663,-500.0,0.00019472,2]
[388659568,1759308641672,-482.02141956,0.00019472,2]
[388659569,1759308641682,-461.22038527,0.00019472,2]
[388659570,1759308641692,-477.63787848,0.00019472,2]
[388659571,1759308641702,-500.0,0.00019472,2]
[388659572,1759308641712,-500.0,0.00019472,2]
[388659573,1759308641722,-482.73835951,0.00019472,2]
[388659574,1759308641731,-500.0,0.00019472,2]
[388659575,1759308641740,-483.09966722,0.00019472,2]
[388659576,1759308641749,-485.87502765,0.00019472,2]
[388659577,1759308641759,-741.4,0.00019472,2]
[388659578,1759308641768,-1188.14,0.00019472,2]
[388659579,1759308641778,-486.31661819,0.00019472,2]
[388659580,1759308641788,-500.0,0.00019472,2]
[388659581,1759308641802,-480.9465214,0.00019472,2]
[388659582,1759308641811,-500.0,0.00019472,2]
[388659583,1759308641821,-485.79481968,0.00019472,2]
[388659584,1759308641831,-484.4525432,0.00019472,2]
[388659585,1759308641841,-500.0,0.00019472,2]
[388659586,1759308641850,-500.0,0.00019472,2]
[388659587,1759308641860,-484.316312,0.00019472,2]